[Event "Grand Masters 2023"]
[Site "Chennai"]
[Date "2023.12.16"]
[Round "2"]
[White "Eljanov, Pavel"]
[Black "Sjugirov, Sanan"]
[Result "0-1"]
[WhiteElo "2691"]
[BlackElo "2703"]
[ECO "A07"]
[EventDate "2023.??.??"]
[Annotator "rafael"]
[PlyCount "126"]
[Beauty "6185558227980"]
[EventType "team-tourn"]
[EventCountry "IND"]
[TimeControl "40/5400+30:1800+30"]

1.Nf3 d5 2.g3 Nf6 3.Bg2 c6 4.O-O Bg4 5.h3 Bh5 6.d3 e6 7.c4 {Eljanov has a classic, positional style and these slow variations usually work well for him.} 7...dxc4 8.dxc4 Nbd7 ( 8...Qxd1 {Exchanging queens is a good alternative. Black has no particular problems after} 9.Rxd1 Nbd7 ) 9.Nc3 Qc7 10.Bf4 e5 11.Be3 Bc5 12.Bxc5 ( 12.Qc1 {is an interesting alternative.} ) 12...Nxc5 13.b4 Ne6 14.Qc1 O-O 15.Nd2 a5 16.a3 {Black has a good position, but it is possible to improve on his next moves, as White will get a small advantage.} 16...axb4 {Opening the a-file is not that advantageous for Black.} ( 16...Rfd8 17.Qb2 Nd4 18.e3 Ne2+ 19.Nxe2 Bxe2 {with equality.} ) 17.axb4 Rxa1 18.Qxa1 Qb6 $6 {[%c_effect b6;square;b6;type;Inaccuracy;persistent;true]} ( 18...Rd8 {is better.} ) 19.Qb2 Ra8 20.Rc1 Qa6 21.e3 ( 21.b5 {leads to a small advantage for White after:} 21...Qb6 22.Ra1 Rxa1+ 23.Qxa1 ) 21...Bg6 22.Nf3 Nd7 23.Rd1 Nef8 24.Nh4 {[%c_arrow a6c4;keyPressed;none;from;a6;opacity;0.8;to;c4;persistent;false] This pawn sacrifice is not bad, but I believe that the best White can do is recover it and achieve a draw. The alternatives likely lead to a draw:} ( 24.b5 Qa3 ) ( 24.Nd2 ) 24...Qxc4 25.Nxg6 hxg6 26.Bf1 ( 26.b5 {offers enough compensation for equality.} ) 26...Qe6 27.Ne4 Nb6 28.Ng5 ( 28.b5 {is again possible, with enough compensation after} 28...Nd5 29.bxc6 bxc6 ) 28...Qe7 29.h4 Nh7 30.Nxh7 $2 {[%c_effect h7;square;h7;type;Mistake;persistent;true] This is a mistake and now White is in danger.} ( 30.Ne4 {is better:} 30...Nf6 31.Ng5 ) 30...Kxh7 31.b5 c5 {The c-pawn becomes very dangerous.} 32.Qc2 e4 $1 {[%c_effect e4;square;e4;type;GreatFind;persistent;true] It's important to close the b1-h7 diagonal and take the e4-square from White's queen.} 33.Qd2 Qe6 ( 33...Qe5 {is more accurate.} ) 34.Qd6 $2 {[%c_effect d6;square;d6;type;Mistake;persistent;true]} ( 34.h5 $1 {[%c_effect h5;square;h5;type;GreatFind;persistent;true] This is a great move by the computer, offering drawing chances. The idea is very hard to understand at first.} 34...gxh5 35.Qd6 $1 {[%c_effect d6;square;d6;type;GreatFind;persistent;true] Now if Black continues as in the game, we can understand why h5 was important:} 35...Qxd6 36.Rxd6 c4 $6 {[%c_effect c4;square;c4;type;Inaccuracy;persistent;true]} 37.Bg2 $1 {[%c_effect g2;square;g2;type;GreatFind;persistent;true] Threatening to capture the e4-pawn with check.} 37...f5 38.Bh3 $1 {[%c_effect h3;square;h3;type;GreatFind;persistent;true] with counterplay.} ) 34...Qxd6 35.Rxd6 c4 $1 {[%c_effect c4;square;c4;type;GreatFind;persistent;true] The only move, but good enough. Now Black wins the exchange after a forced sequence.} 36.Rxb6 c3 37.Rxb7 Rc8 $1 {[%c_effect c8;square;c8;type;GreatFind;persistent;true]} 38.Ra7 c2 39.Ra1 c1=Q 40.Rxc1 Rxc1 41.Kg2 {With the b-pawn it would be possible to think that White has good chances for a draw, but the pawn structure on the kingside is very unfavorable. Black can endeavor to attack the f2-pawn, and if White moves the pawn before this happens, then his structure remains bad.} 41...g5 ( 41...Kg8 {It's hard to say without detailed analysis which move is better and whether this actually makes any difference.} ) 42.hxg5 Kg6 43.b6 {White decides not to wait passively.} 43...Rc6 $1 {[%c_effect c6;square;c6;type;GreatFind;persistent;true] The only winning move.} ( 43...Rb1 $2 {[%c_effect b1;square;b1;type;Mistake;persistent;true]} 44.Bc4 Rxb6 45.Bd5 {with a draw.} ) 44.b7 Rb6 45.Ba6 Kxg5 {The bishop is badly placed.} 46.f4+ $6 {[%c_effect f4;square;f4;type;Inaccuracy;persistent;true] This makes things worse, but the endgame should be lost anyway.} 46...exf3+ 47.Kxf3 Kf5 48.Bd3+ Ke5 49.Be4 f5 $1 {[%c_effect f5;square;f5;type;GreatFind;persistent;true]} 50.Bc6 Kd6 51.Be8 Rxb7 {White is not in time to exchange the e-pawn for the f-pawn.} 52.Kf4 Ke6 53.e4 Rb4 $1 {[%c_effect b4;square;b4;type;GreatFind;persistent;true]} 54.Bc6 Kf6 55.Kf3 Rb3+ 56.Kf2 Rb6 57.Ba8 Rb8 58.Bc6 Rb2+ 59.Kf3 Rc2 60.Bb7 Rc7 61.Ba8 Rc3+ 62.Kf2 Kg5 63.exf5 Kg4 $1 {[%c_effect g4;square;g4;type;GreatFind;persistent;true] The last accurate move.} ( 63...Kxf5 $4 {[%c_effect f5;square;f5;type;Blunder;persistent;true]} 64.Bf3 {leads to a draw, since White has a fortress.} ) 0-1

[Event "Grand Masters 2023"]
[Site "Chennai"]
[Date "2023.12.17"]
[Round "3"]
[White "Erigaisi, Arjun"]
[Black "Predke, Alexandr"]
[Result "1-0"]
[WhiteElo "2727"]
[BlackElo "2689"]
[ECO "B33"]
[EventDate "2023.??.??"]
[Annotator "rafael"]
[PlyCount "141"]
[Beauty "5773799208505"]
[EventType "team-tourn"]
[EventCountry "IND"]
[TimeControl "40/5400+30:1800+30"]

1.e4 c5 2.Nf3 Nc6 3.d4 cxd4 4.Nxd4 Nf6 5.Nc3 e5 6.Ndb5 d6 7.Nd5 Nxd5 8.exd5 Ne7 {8...Nb8 is much more popular, but this is also commonly played. Arjun faced this move in 2023 in a game against Dubov.} 9.c3 $5 {[%c_effect c3;square;c3;type;Interesting;persistent;true]} ( 9.c4 {is the main move:} 9...Ng6 10.Qa4 Bd7 11.Qb4 Qb8 12.h4 h5 13.Be2 Be7 14.g3 a6 15.Nc3 b5 16.cxb5 axb5 17.Nxb5 O-O $13 {/= with good compensation for the pawn: Arjun-Dubov, Global Chess League Dubai rapid 2023.} ) 9...Nf5 $1 {[%c_effect f5;square;f5;type;GreatFind;persistent;true] This is the best route for the knight now.} ( 9...Ng6 $2 {[%c_effect g6;square;g6;type;Mistake;persistent;true] is a clear mistake. White can now use the c4-square for the queen.} 10.Qa4 Bd7 11.Qb4 Bf5 ( 11...Qb8 12.Qc4 $1 {[%c_effect c4;square;c4;type;GreatFind;persistent;true] is also bad.} ) 12.Qc4 $1 {[%c_effect c4;square;c4;type;GreatFind;persistent;true] creating the annoying threat of Nc7+.} ) ( 9...f5 {is also possible, but looks risky.} ) 10.a4 Be7 11.Bd3 O-O 12.O-O {This is well-known opening theory, with more than 200 games played in this position.} 12...Nh4 {A good move, but there are alternatives. The plan is to push the f-pawn and start to move the kingside majority.} ( 12...a6 13.Na3 Bg5 {is insufficient for equality after} 14.f4 $1 {[%c_effect f4;square;f4;type;GreatFind;persistent;true]} 14...exf4 15.Bxf4 ) ( 12...Bd7 $5 {[%c_effect d7;square;d7;type;Interesting;persistent;true] is a flexible move, completing development and leaving the knight a little longer.} ) 13.f4 a6 14.Na3 exf4 15.Bxf4 Ng6 16.Bxg6 $6 {[%c_effect g6;square;g6;type;Inaccuracy;persistent;true] This exchange makes things easier for Black. It's better to preserve the bishops with 16.Bg3 or 16.Be3, when White can fight for the advantage.} ( 16.Bg3 ) ( 16.Be3 ) 16...hxg6 17.Nc4 Qc7 18.b3 b6 {A new move. Predke probably wanted to prevent a4-a5. He could, however, ignore White's idea and activate his bishop instead:} ( 18...Bf5 19.a5 Be4 $1 {[%c_effect e4;square;e4;type;GreatFind;persistent;true] with equal chances.} ) 19.Be3 {This move doesn't look very good, since the bishop was already well-placed on f4. Getting it to d4 isn't so important for the position. Anyway, it's difficult to prove an advantage for White.} ( 19.Re1 Bf5 {A difficult move. At first I thought 19...Rd8 was forced, but then White has some initiative.} ( 19...Rd8 20.Qf3 ) 20.Rxe7 Qxe7 21.Bxd6 Qa7 $1 {[%c_effect a7;square;a7;type;GreatFind;persistent;true]} 22.Qd4 ( 22.Bxf8 {is bad due to} 22...b5+ $1 {[%c_effect b5;square;b5;type;GreatFind;persistent;true]} 23.Kh1 bxc4 24.Ba3 cxb3 25.Qxb3 Re8 {with good counterplay} ) 22...Rfe8 23.Nxb6 Re4 24.Qc5 Rae8 {with a tense position where both sides have chances.} ) ( 19.Qd4 {is also possible:} 19...Rb8 20.Rfe1 Rd8 21.Qe3 Bf8 22.a5 bxa5 23.Nxa5 Bd7 {Black is close to equality.} ) 19...Rb8 20.Bd4 Bg5 $1 {[%c_effect g5;square;g5;type;GreatFind;persistent;true] Activating the bishop.} 21.Nd2 {The knight was ready to be attacked by b6-b5. Now it can go to e4 or f3.} 21...Re8 22.c4 $6 {[%c_effect c4;square;c4;type;Inaccuracy;persistent;true] White's position becomes unpleasant now. It's important to fight for control of the e-file with} ( 22.Re1 $1 {[%c_effect e1;square;e1;type;GreatFind;persistent;true]} ) 22...Be3+ 23.Bxe3 Rxe3 24.Re1 Qc5 25.Kh1 Bf5 26.Nf3 $6 {[%c_effect f3;square;f3;type;Inaccuracy;persistent;true] This move loses a pawn.} ( 26.Rxe3 Qxe3 27.Qe1 $1 {[%c_effect e1;square;e1;type;GreatFind;persistent;true]} ( 27.Nf1 Qc3 $15 ) 27...Qd3 {with the initiative for Black.} ( 27...Re8 {is not very accurate:} 28.Qxe3 Rxe3 29.a5 bxa5 30.Kg1 {with an equal endgame.} ) ) 26...Bg4 $2 {[%c_effect g4;square;g4;type;Mistake;persistent;true] Now White achieves a comfortable endgame.} ( 26...Rd3 $1 {[%c_effect d3;square;d3;type;GreatFind;persistent;true] is much better. White has some practical compensation after} 27.Qe2 Rxb3 28.Qe7 Rf8 {but here it's more a question of whether Black is able to win or White has enough counterplay for a draw.} ) 27.Rxe3 Qxe3 28.Qd4 $1 {[%c_effect d4;square;d4;type;GreatFind;persistent;true]} 28...Qxd4 29.Nxd4 Bd7 30.a5 {I believe this move was played in order to prevent a6-a5, when it's difficult to crack Black's position, but this decision is double-edged.} ( 30.Kg1 {Black can choose between a5 or g5.} 30...a5 ( 30...g5 ) ) ( 30.h4 {This is the typical move that would please the late coach Mark Dvoretsky. He loved pawn moves to prevent counterplay in the endgame. Black cannot now play g6-g5, so he should move the other pawn:} 30...a5 $1 {[%c_effect a5;square;a5;type;GreatFind;persistent;true]} 31.Re1 Re8 32.Rxe8+ Bxe8 {The computer says White is slightly better and maybe Carlsen is able to win this endgame, but it seems really difficult to make progress.} ) 30...b5 31.cxb5 Bxb5 32.Kg1 Bd3 33.Ra4 {Preventing Rb4 and Be4, but the rook is misplaced.} ( 33.Kf2 {likely ends in a draw after} 33...Be4 34.Rc1 Bxd5 35.Rc7 ) ( 33.Rc1 {is also equal:} 33...Rb4 34.Nf3 f6 35.Rc6 Rxb3 36.Rxd6 ) 33...Re8 $6 {[%c_effect e8;square;e8;type;Inaccuracy;persistent;true]} ( 33...f5 $1 {[%c_effect f5;square;f5;type;GreatFind;persistent;true] prepares Be4, when Black has the initiative.} ) 34.Rb4 Re1+ 35.Kf2 Re5 ( 35...Ra1 {is more accurate:} 36.Rb6 Rxa5 37.Rxd6 Be4 38.Rd8+ Kh7 39.d6 Rd5 {with equality.} ) 36.Nc6 Re2+ 37.Kf3 Ra2 $2 {[%c_effect a2;square;a2;type;Mistake;persistent;true]} ( 37...g5 $1 {[%c_effect g5;square;g5;type;GreatFind;persistent;true] is necessary:} 38.Rb8+ Kh7 39.Rd8 Rb2 40.Rxd6 Rxb3 41.Ke3 Bb5+ 42.Kd4 Rb2 {with good drawing chances.} ) 38.Rb8+ Kh7 39.Rd8 $2 {[%c_effect d8;square;d8;type;Mistake;persistent;true] This gives Black hope again.} ( 39.Nb4 $1 {[%c_effect b4;square;b4;type;GreatFind;persistent;true] is better:} 39...Be2+ 40.Ke3 Rb2 41.Rb6 $1 {[%c_effect b6;square;b6;type;GreatFind;persistent;true] with excellent winning chances.} ) 39...f5 $6 {[%c_effect f5;square;f5;type;Inaccuracy;persistent;true]} ( 39...Bf1 $1 {[%c_effect f1;square;f1;type;GreatFind;persistent;true] The pawns should be attacked immediately.} 40.Rxd6 Bxg2+ {Black should escape with accurate play.} ) 40.Rxd6 Be4+ 41.Kf4 Rxg2 $6 {[%c_effect g2;square;g2;type;Inaccuracy;persistent;true]} ( 41...Bxg2 $1 {[%c_effect g2;square;g2;type;GreatFind;persistent;true] is better, although the position is quite difficult to defend. The idea is to have more space for checks with the rook and a clear path for the f-pawn to advance.} 42.Rd8 Rf2+ {with good drawing chances.} ) 42.Rd8 g5+ 43.Ke5 Rxh2 44.Nd4 {The d-pawn is ready to advance and Black is lost.} 44...Ra2 45.b4 g4 46.d6 g3 47.d7 {A simple and human way of winning. The computer indicates an alternative that leads to a much more difficult win.} ( 47.Rc8 g2 48.Rc1 Rf2 $1 {[%c_effect f2;square;f2;type;GreatFind;persistent;true]} 49.d7 Rf1 50.Rc3 $3 {[%c_effect c3;square;c3;type;Brilliant;persistent;true] The only way to win.} ( 50.d8=Q $2 {[%c_effect d8;square;d8;type;Mistake;persistent;true]} 50...Rxc1 51.Ne2 Bf3 {Black escapes with a draw.} ) 50...g1=Q 51.Rh3+ Kg6 52.d8=Q {Black has no checks and White's attack will prove decisive.} ) 47...g2 48.Rh8+ Kxh8 49.d8=Q+ Kh7 50.Qg5 Ra1 51.Ne2 $1 {[%c_effect e2;square;e2;type;GreatFind;persistent;true] The knight prevents the g-pawn from promoting.} 51...Rb1 52.Ke6 Rxb4 53.Qh4+ Kg8 54.Qd8+ Kh7 55.Kf7 Rb7+ 56.Kf8 $1 {[%c_effect f8;square;f8;type;GreatFind;persistent;true] The king crosses the whole board and helps the attack.} 56...f4 57.Qh4+ Kg6 58.Nxf4+ Kf5 59.Nxg2 $1 {[%c_effect g2;square;g2;type;GreatFind;persistent;true] With the capture of the g-pawn, victory becomes a matter of time.} 59...g5 ( 59...Bxg2 60.Qf2+ {Black is unable to set up any kind of fortress.} ) 60.Ne3+ Kf6 61.Qh6+ Ke5 62.Qxg5+ Kd4 63.Qf4 Rb5 64.Ke7 Kd3 65.Ng4 Bd5 66.Ne5+ Kc3 67.Qe3+ Kb4 68.Kd6 Rxa5 69.Nd3+ Kc4 70.Nb2+ Kb4 71.Qd2+ 1-0

[Event "Champions Chess Tour Finals 2023"]
[Site "Chess.com"]
[Date "2023.12.09"]
[Round "2"]
[White "Caruana, Fabiano"]
[Black "Firouzja, Alireza"]
[Result "0-1"]
[WhiteElo "2762"]
[BlackElo "2737"]
[ECO "C54"]
[EventDate "2023.??.??"]
[Annotator "rafael"]
[PlyCount "74"]
[Beauty "7839393011243"]
[EventType "team-tourn"]
[TimeControl "15+3"]

{[%evp 0,74,21,13,21,13,10,10,6,17,10,16,24,23,19,-5,16,12,22,3,-13,3,8,25,30,10,10,2,0,-5,12,-19,-7,-22,15,9,39,0,60,47,61,7,79,82,94,45,95,-10,-31,-14,-21,-34,-44,-85,-19,-19,-18,-75,-103,-414,-28,-219,-219,-108,-209,-267,-309,-323,-314,-324,-308,-312,-306,-322,-322,-29997,-29996]} 
1.e4 e5 2.Nf3 Nc6 3.Bc4 Nf6 4.d3 Bc5 5.O-O d6 6.c3 O-O 7.h3 a6 8.a4 Ba7 9.Re1 h6 10.Nbd2 Re8 11.b4 Be6 12.Bxe6 Rxe6 {This is a critical position of the modern Italian Opening theory.} 13.Bb2 {This move is suggested by Giri in one of his opening courses.} ( 13.Qc2 {is the most popular and was played by Caruana in a blitz game this year.} 13...Qd7 14.Rb1 b5 15.Ra1 Ree8 16.Nb3 {Caruana-Anand, Zagreb SuperUnited Blitz 2023.} ) 13...Nh5 ( 13...Ne7 {immediately is the main line.} 14.Nf1 Ng6 15.c4 c6 16.a5 Qe8 17.Ng3 d5 18.Qb3 Rd8 {when the game is close to equality.} ) 14.Nf1 Ne7 15.c4 Ng6 16.g3 $6 {[%c_effect g3;square;g3;type;Inaccuracy;persistent;true] A new move. Caruana probably got his preparation mixed up, which is very rare.} ( 16.Ne3 {is Giri's suggestion.} ) 16...Ngf4 $5 {[%c_effect f4;square;f4;type;Interesting;persistent;true] The idea of the knight sacrifice on f4 is thematic. It's also possible to place the other knight on this square.} ( 16...Nhf4 $5 {[%c_effect f4;square;f4;type;Interesting;persistent;true]} 17.Kh2 ( 17.gxf4 Nxf4 {likely transposes to the game after} 18.Kh2 Rg6 19.Ne3 ) 17...Bxf2 18.gxf4 Bxe1 19.f5 $1 {[%c_effect f5;square;f5;type;GreatFind;persistent;true] This is an important detail.} 19...Bxb4 20.fxe6 fxe6 {with an unclear position where Black has three pawns for a knight.} ) 17.gxf4 ( 17.Kh2 {is an important alternative:} 17...Bxf2 18.gxf4 Bxe1 19.f5 $1 {[%c_effect f5;square;f5;type;GreatFind;persistent;true] This intermediate move justifies White's play.} 19...Bxb4 20.fxe6 fxe6 {again with a position that is difficult to evaluate. I should mention that the computer assesses it as equal.} ) 17...Rg6+ ( 17...Nxf4 18.Kh2 Rg6 19.Ne3 {transposes to the game.} ) 18.Kh2 ( 18.Kh1 $5 {[%c_effect h1;square;h1;type;Interesting;persistent;true] is also possible. White uses the h2-square for his knight in order to shield the king.} 18...Nxf4 19.d4 Qd7 20.N1h2 Qxh3 21.Rg1 {White is not going to be mated, but Black maintains undeniable compensation for the piece.} ) 18...Nxf4 19.Ne3 Qd7 $6 {[%c_effect d7;square;d7;type;Inaccuracy;persistent;true] This tempting move is a mistake.} ( 19...Bxe3 $1 {[%c_effect e3;square;e3;type;GreatFind;persistent;true] leads to a forced draw.} 20.fxe3 ( 20.Rxe3 $2 {[%c_effect e3;square;e3;type;Mistake;persistent;true] loses:} 20...Rg2+ 21.Kh1 Rxf2 22.Bc3 Nxh3 {with a winning attack.} ) 20...Rg2+ 21.Kh1 Qd7 22.Ng1 Rxg1+ $1 {[%c_effect g1;square;g1;type;GreatFind;persistent;true]} 23.Kxg1 Qxh3 24.exf4 Qg3+ {White cannot escape perpetual check.} 25.Kf1 Qh3+ 26.Ke2 Qg2+ 27.Ke3 exf4+ 28.Kxf4 ( 28.Kd4 $4 {[%c_effect d4;square;d4;type;Blunder;persistent;true]} 28...Qxb2+ 29.Kd5 Qe5# ) 28...Qf2+ 29.Kg4 ( 29.Qf3 $4 {[%c_effect f3;square;f3;type;Blunder;persistent;true]} 29...g5+ 30.Kg4 h5+ ) 29...Qg2+ ) 20.Ng1 $2 {[%c_effect g1;square;g1;type;Mistake;keyPressed;undefined;persistent;true]} ( 20.Nf5 $1 {[%c_effect f5;square;f5;type;GreatFind;persistent;true] is the right move.} 20...Bxf2 ( 20...Rg2+ 21.Kh1 g6 {This was probably the continuation that worried Caruana, as it looks good for Black. But White not only manages to defend himself but gains a decisive advantage after} 22.Bc1 $1 {[%c_effect c1;square;c1;type;GreatFind;persistent;true]} 22...Rxf2 ( 22...gxf5 23.Bxf4 {the rook is hanging on g2.} ) 23.Rg1 $1 {[%c_effect g1;square;g1;type;GreatFind;persistent;true]} 23...Kh7 24.c5 $1 {[%c_effect c5;square;c5;type;GreatFind;persistent;true] White is winning in all lines, for instance:} 24...gxf5 25.Bxf4 exf4 26.Ng5+ $1 {[%c_effect g5;square;g5;type;GreatFind;persistent;true] White is the one attacking now.} ) 21.Rf1 Bg3+ ( 21...Rg2+ 22.Kh1 g6 23.Nxe5 $1 {[%c_effect e5;square;e5;type;GreatFind;persistent;true]} 23...dxe5 24.Bxe5 {with a winning position.} ) 22.Kh1 Nxh3 23.Qd2 {White's king is protected and the f5-knight is very strong.} ) 20...Rxg1 $1 {[%c_effect g1;square;g1;type;GreatFind;persistent;true]} 21.Kxg1 Qxh3 22.c5 $2 {[%c_effect c5;square;c5;type;Mistake;persistent;true]} ( 22.Qg4 {is the only chance. It looks completely losing, but there are still drawing hopes after} 22...Bxe3 $1 {[%c_effect e3;square;e3;type;GreatFind;persistent;true]} 23.Qxh3 Nxh3+ 24.Kg2 ( 24.Kh2 Nxf2 $1 {[%c_effect f2;square;f2;type;GreatFind;persistent;true]} ) 24...Nf4+ 25.Kf3 ) 22...h5 $1 {[%c_effect h5;square;h5;type;GreatFind;persistent;true] Preventing Qg4. Black is ready to play Re8-e6 with a decisive attack.} 23.Re2 Re8 24.Qf1 Nxe2+ 25.Qxe2 Re6 26.Ng2 Rg6 27.Qf1 h4 28.Rc1 a5 $1 {[%c_effect a5;square;a5;type;GreatFind;persistent;true] Firouzja plays perfectly. This move guarantees that the bishop on a7 will take part in the attack.} 29.Bc3 ( 29.bxa5 Bxc5 30.Rxc5 dxc5 {Black is completely winning.} ) 29...Qg4 ( 29...Qf3 {wins easily as well:} 30.Kh2 Rxg2+ $1 {[%c_effect g2;square;g2;type;GreatFind;persistent;true]} 31.Qxg2 Qf4+ {picking up the rook on c1.} ) 30.Kh2 h3 31.Ne3 Qf4+ 32.Kh1 Qf3+ 33.Kh2 Qf4+ 34.Kh1 dxc5 $1 {[%c_effect c5;square;c5;type;GreatFind;persistent;true]} 35.bxc5 Qf3+ 36.Kh2 Bxc5 37.Qh1 {This leaves f2 unprotected, but other moves lose as well.} ( 37.Re1 Bxe3 38.Rxe3 Qf4+ 39.Kh1 h2 {followed by Rg1.} ) 37...Qxf2+ 0-1